[Event "Chessable English Open-ch 2022"]
[Site "Kenilwoth"]
[Date "2022.05.19"]
[Round "1.7"]
[White "Jackson, James P"]
[Black "Southcott-Moyers, Indy"]
[Result "1/2-1/2"]
[ECO "C54"]
[WhiteElo "2400"]
[BlackElo "2028"]
[Annotator "TA"]
[PlyCount "98"]
[EventDate "2022.05.18"]
[EventType "swiss"]
[EventCountry "ENG"]
[SourceTitle "playchess.com"]
[Source "ChessBase"]
[SourceQuality "1"]
[TimeControl "5400+30"]

{[%evp 14,98,29,8,13,0,0,0,0,0,0,0,0,0,0,4,8,10,13,3,16,12,23,0,0,0,0,0,0,0,0,0,0,0,0,0,0,0,0,0,0,-24,-18,-27,-31,-79,-38,-35,-11,-22,0,0,0,0,0,-24,0,-18,-24,-13,0,-135,-118,-581,-558,-1875,-1868,-1237,-141,-141,-141,-141,-141,-141,-141,-135,-93,-489,-48,-48,-1,-8,-23,-23,0,0,0]} 1. e4 {[%emt 0:00:05]} e5 {[%emt 0:00:04]} 2. Nf3 {[%emt 0:00:05]} Nc6 {[%emt 0:00:05]} 3. Bc4 {[%emt 0:00:04]} Bc5 {[%emt 0:00:08]} 4. c3 {[%emt 0:00:37]} Nf6 {[%emt 0:00:07]} 5. d3 {[%emt 0:00:04]} d6 {[%emt 0:00:08]} 6. O-O {[%emt 0:01:22]} h6 {[%emt 0:02:21]} 7. Re1 {[%emt 0:01:22]} O-O {[%emt 0:00:11]} 8. h3 {[%emt 0:00:32]} (8. b4 $5 {[%cal Rb4c5]} Bb6 9. a4 $11) 8... a5 {[%emt 0:00:08] 8...Bb6 is the modern continuation. C54: Giuoco Piano: 4 c3 Nf6, main lines with 5 d4 and 5 d3.} 9. d4 {[%emt 0:01:31]} Bb6 {[%emt 0:09:35][%cal Of6e4]} 10. Bb3 {[%emt 0:00:31]} Re8 {[%emt 0:01:39]} 11. Bc2 {[%emt 0:00:07]} exd4 {[%emt 0:13:34]} 12. cxd4 {[%emt 0:00:07]} Nb4 $1 {[%emt 0:01:38]} 13. Nc3 {[%emt 0:00:08]} Nxc2 {[%emt 0:05:58]} 14. Qxc2 {[%emt 0:00:07] [#]} Be6 $146 {[%emt 0:04:38]} ({Predecessor:} 14... d5 15. e5 Ne4 16. Be3 Bf5 17. Nd2 Bg6 18. Ndxe4 dxe4 19. Rad1 Ra6 20. Qb3 Qd7 {½-½ (38) Haria,R (2490)-Adams,M (2700) London 2021}) 15. d5 {[%emt 0:05:41]} Bd7 {[%emt 0:03:53]} 16. Be3 {[%emt 0:02:41]} c6 {[%emt 0:18:19]} 17. dxc6 {[%emt 0:04:50]} Bxc6 {[%emt 0:00:21]} 18. Bd4 {[%emt 0:02:43]} Rc8 {[%emt 0:04:07][%cal Of6e4]} 19. Qd3 {[%emt 0:04:59]} Nd7 {[%emt 0:04:57][%cal Bf6d7,Bd7e5,Be5f3][%mdl 32]} 20. Rad1 {[%emt 0:09:12]} Ne5 {[%emt 0:04:54]} 21. Qe2 {[%emt 0:11:23] aiming for Bxe5.} Nxf3+ {[%emt 0:03:38]} 22. Qxf3 {[%emt 0:00:17]} Bxd4 {[%emt 0:00:11]} 23. Rxd4 {[%emt 0:00:05]} Qb6 {[%emt 0:00:16][%csl LRb2,LRd4]} 24. Rxd6 {[%emt 0:07:58]} Qxb2 {[%emt 0:01:03]} 25. Re3 {[%emt 0:46:29]} Qb4 {[%emt 0:02:14]} 26. Qf4 {[%emt 0:00:00][%cal Od6f6]} Rcd8 {[%emt 0:05:42]} 27. Rxd8 {[%emt 0:00:00]} (27. Rxh6 $5 gxh6 28. Qxh6 $11) 27... Rxd8 {[%emt 0:00:04]} 28. Qc7 {[%emt 0:00:00]} Rd7 {[%emt 0:05:19]} 29. Qb8+ {[%emt 0:00:00]} (29. Qe5 $15) 29... Qf8 {[%emt 0:00:11]} 30. Qe5 {[%emt 0:00:00]} a4 {[%emt 0:01:19]} 31. Rg3 {[%emt 0:00:00]} f6 {[%emt 0:03:13]} 32. Qh5 {[%emt 0:00:00]} Qd6 {[%emt 0:01:59]} 33. Qe8+ {[%emt 0:00:00]} Qf8 {[%emt 0:00:46]} 34. Qg6 {[%emt 0:00:00]} Qd6 {[%emt 0:02:26]} 35. Qg4 {[%emt 0:00:00]} b5 {[%emt 0:01:23]} 36. a3 {[%emt 0:00:00]} Qe5 {[%emt 0:01:07]} 37. Kh2 {[%emt 0:00:00]} (37. f4 $11 {keeps the balance.} Qe7 38. Qf5) 37... h5 $17 {[%emt 0:00:20]} 38. Qh4 {[%emt 0:00:00][%mdl 8192]} (38. f4 $17 {is a better chance.} hxg4 39. fxe5) 38... Rd3 $1 $19 {[%emt 0:00:20]} 39. Nd5 {[%emt 0:03:06]} Bxd5 {[%emt 0:00:42]} 40. exd5 {[%emt 0:00:06]} Rxg3 $2 {[%emt 0:00:07]} (40... Rd4 $19 {and Black stays clearly on top.} 41. Qxd4 Qxd4) 41. fxg3 $17 {[%emt 0:00:14]} Qxd5 $19 {[%emt 0:00:08][%mdl 4096] Endgame KQ-KQ} 42. Qb4 {[%emt 0:00:59]} Qe5 {[%emt 0:00:35]} 43. h4 {[%emt 0:00:19] [#]} g5 $1 {[%emt 0:00:29]} 44. hxg5 {[%emt 0:00:57]} fxg5 {[%emt 0:00:01] Threatens to win with ...h4.} 45. Kg1 $2 {[%emt 0:01:25][%mdl 8192] [#]} (45. Kh1 $17 {nothing else works.}) 45... Qxg3 $2 {[%emt 0:00:39]} (45... h4 $1 $19 {[%cal Rh4g3]} 46. Qd2 hxg3) 46. Qxb5 $15 {[%emt 0:00:11]} Qe1+ {[%emt 0:00:52]} (46... Qxa3 $15 47. Qxg5+ Kf8) 47. Kh2 $11 {[%emt 0:00:05]} Qh4+ {[%emt 0:00:07]} 48. Kg1 {[%emt 0:00:04]} Qe1+ {[%emt 0:00:53]} 49. Kh2 {[%emt 0:00:06]} Qh4+ {[%emt 0:00:05] Weighted Error Value: White=0.69/Black=0.40} 1/2-1/2

[Event "Chessable English Open-ch 2022"]
[Site "Kenilwoth"]
[Date "2022.05.19"]
[Round "1.8"]
[White "Wells, Daniel J"]
[Black "Derakhshani, Borna"]
[Result "0-1"]
[ECO "B12"]
[WhiteElo "2020"]
[BlackElo "2388"]
[Annotator "TA"]
[PlyCount "88"]
[EventDate "2022.05.18"]
[EventType "swiss"]
[EventCountry "ENG"]
[SourceTitle "playchess.com"]
[Source "ChessBase"]
[SourceQuality "1"]
[TimeControl "5400+30"]

{[%evp 12,88,38,21,33,18,35,7,8,-25,-14,-6,0,-32,-20,-36,-27,-31,-10,-37,-17,-9,-13,-26,-27,-42,-29,-109,-91,-103,-90,-125,-56,-64,-60,-72,14,0,24,0,0,-24,-17,-10,-18,-24,-24,-19,0,-33,-17,-36,-28,-137,29,26,26,0,0,0,27,22,29,43,70,0,0,-588,-588,-574,-566,-879,-864,-806,-764,-12836,-12836,-5706,-4434]} 1. e4 {[%emt 0:00:04]} c6 {[%emt 0:00:04]} 2. d4 {[%emt 0:00:11]} d5 {[%emt 0:00:05]} 3. e5 {[%emt 0:00:07]} Bf5 {[%emt 0:00:05]} 4. Nf3 {[%emt 0:00:44]} e6 {[%emt 0:00:09]} 5. Be2 {[%emt 0:00:08]} Ne7 {[%emt 0:00:37]} 6. O-O {[%emt 0:00:33]} Bg6 {[%emt 0:00:05]} 7. Nbd2 {[%emt 0:06:57]} Nf5 {[%emt 0:00:52] B12: Caro-Kann: Advance Variation.} 8. a3 {[%emt 0:02:19] [#]} Be7 $146 {[%emt 0:02:06]} ({Predecessor:} 8... Nd7 9. Nb3 a6 10. Bd2 c5 11. dxc5 Bxc5 12. Nxc5 Nxc5 13. Bb4 b6 14. a4 Qc7 {0-1 (39) Cubas,J (2470)-Svetushkin,D (2543) Baku 2016}) 9. b4 {[%emt 0:03:40][%cal Bb2b4,Bb4b5][%mdl 32]} a5 {[%emt 0:00:22] The position is equal.} 10. b5 {[%emt 0:09:44]} O-O {[%emt 0:00:34]} 11. a4 {[%emt 0:04:58]} Nd7 {[%emt 0:04:15]} 12. Bb2 {[%emt 0:08:33]} Rc8 {[%emt 0:02:04]} 13. c4 {[%emt 0:03:41]} dxc4 {[%emt 0:01:57]} 14. Nxc4 {[%emt 0:01:04]} Bh5 {[%emt 0:05:06]} 15. Rc1 {[%emt 0:13:23]} cxb5 {[%emt 0:15:24]} 16. axb5 {[%emt 0:00:53]} Bb4 {[%emt 0:00:12]} 17. h3 {[%emt 0:04:51]} Ne7 $1 {[%emt 0:02:58]} 18. Ng5 {[%emt 0:04:19]} Bg6 {[%emt 0:04:49]} 19. Bd3 {[%emt 0:06:53] [#]} (19. Nd6 $11) 19... Nb6 $1 $17 {[%emt 0:06:31]} 20. Ne3 {[%emt 0:10:46]} Rxc1 {[%emt 0:05:19]} 21. Bxc1 {[%emt 0:00:05]} Bxd3 {[%emt 0:06:27]} ({Black should play} 21... Ned5 $17 {Threatens to win with ...Nc3.} 22. Nxd5 Qxd5) 22. Qxd3 $15 {[%emt 0:00:12][%csl Gg5][%cal Rd3h7]} Ng6 {[%emt 0:00:05]} 23. h4 {[%emt 0:06:56][%cal Bh3h4,Bh4h5][%mdl 32]} Re8 {[%emt 0:04:44]} (23... h6 $17 24. Nxe6 Nxe5) 24. f4 $11 {[%emt 0:01:14]} h6 {[%emt 0:02:35]} 25. h5 {[%emt 0:02:37]} Nf8 {[%emt 0:00:48]} 26. Nf3 {[%emt 0:02:42]} Nd5 $36 {[%emt 0:02:51][%mdl 2048] Black has some pressure.} 27. f5 {[%emt 0:00:11][%cal Of5f6]} Nxe3 {[%emt 0:02:16]} 28. Bxe3 {[%emt 0:00:06][%cal Of5f6] And now f6! would win.} exf5 {[%emt 0:00:04]} 29. Qxf5 {[%emt 0:01:04][%cal Of3h4]} Qd7 {[%emt 0:00:22]} 30. Qe4 {[%emt 0:00:39]} Qxb5 {[%emt 0:01:26] Black wants to play ...Ne6.} 31. Nh4 {[%emt 0:00:54] Strongly threatening Qg4.} Qe2 {[%emt 0:00:44] Prevents Qg4.} 32. Rf3 {[%emt 0:02:08]} (32. Nf5 $11 {remains equal.} Bd2 33. Rf2 Qd1+ 34. Rf1) 32... Qe1+ $2 {[%emt 0:00:07]} (32... Bd2 $17 {aiming for ...Ne6.} 33. Nf5 Ne6) 33. Kh2 {[%emt 0:00:23]} Ne6 {[%emt 0:03:18] Inhibits Qf4.} 34. Nf5 {[%emt 0:00:51]} Ng5 {[%emt 0:28:09]} 35. Qg4 {[%emt 0:01:46]} Bd2 {[%emt 0:00:00][%cal Bb4d2,Bd2g5,Bg5e3,Be3g1][%mdl 32]} 36. Bxg5 {[%emt 0:00:59]} Bxg5 {[%emt 0:00:00]} (36... hxg5 $2 37. h6 g6 38. h7+ (38. Nd6 Rf8 $11) 38... Kh8 39. Nd6 $18) 37. Nd6 {[%emt 0:00:58][%csl LRb7,LRe8,LRf7]} Rf8 {[%emt 0:00:00] [#]} 38. Nxb7 {[%emt 0:00:23]} (38. Nxf7 $1 $14 Qh4+ 39. Qxh4 Bxh4 40. e6) 38... Be3 {[%emt 0:00:00] White must now prevent ...Qg1+.} 39. d5 $2 {[%emt 0:00:41][%mdl 8192]} (39. Nd6 $11 {and White is okay.}) 39... Bg1+ $19 {[%emt 0:00:00] Black is clearly winning.} 40. Kh3 {[%emt 0:00:11]} Qxe5 {[%emt 0:00:00][%csl Gg1][%cal Re5h2]} 41. Rg3 {[%emt 0:00:24]} f5 {[%emt 0:00:00][%cal Bf7f5,Bf5f4][%mdl 32]} 42. Qg6 {[%emt 0:00:09]} f4 {[%emt 0:00:00]} 43. Rf3 {[%emt 0:01:10]} Rf6 {[%emt 0:00:00]} 44. Qg4 {[%emt 0:00:49]} Rf5 {[%emt 0:00:00] Weighted Error Value: White=0.67/Black=0.18 (very precise)} 0-1

[Event "Chessable English Open-ch 2022"]
[Site "Kenilwoth"]
[Date "2022.05.19"]
[Round "1.9"]
[White "Arkell, Keith C"]
[Black "Shearsby, Jude"]
[Result "1-0"]
[ECO "A48"]
[WhiteElo "2367"]
[BlackElo "1849"]
[Annotator "TA"]
[PlyCount "155"]
[EventDate "2022.05.18"]
[EventType "swiss"]
[EventCountry "ENG"]
[SourceTitle "playchess.com"]
[Source "ChessBase"]
[SourceQuality "1"]
[TimeControl "5400+30"]

{[%evp 9,155,0,16,0,0,12,6,0,9,8,14,0,22,-10,31,22,29,5,17,-14,46,44,104,98,87,89,82,82,125,132,145,155,145,108,112,112,111,101,107,108,104,118,128,121,111,112,98,123,109,98,99,99,105,87,105,80,87,58,66,43,34,27,53,43,137,137,172,155,167,173,181,185,178,106,131,140,306,222,218,157,168,119,833,849,842,840,819,814,803,766,523,332,315,325,457,369,369,369,362,360,265,244,266,248,258,252,252,252,599,358,608,679,686,677,684,670,674,672,660,660,648,617,658,651,694,691,597,535,1733,498,29968,29969,29966,29967,29971,29972,29978,29979,29977,29978,29978,29979,29982,29982,29980,29968,29978,29979]} 1. d4 {[%emt 0:00:17]} Nf6 {[%emt 0:00:11]} 2. Nf3 {[%emt 0:00:04]} g6 {[%emt 0:00:08]} 3. b4 {[%emt 0:00:20]} Bg7 {[%emt 0:04:59]} 4. Bb2 {[%emt 0:00:06]} O-O {[%emt 0:00:26]} 5. e3 {[%emt 0:00:04]} c6 {[%emt 0:01:01]} 6. Nbd2 {[%emt 0:00:29] A48: 1 d4 Nf6 2 Nf3 g6: Torre, London and Colle Systems.} d6 {[%emt 0:04:41]} 7. Be2 {[%emt 0:00:39] [#]} a5 $146 {[%emt 0:02:42]} ({Predecessor:} 7... Nbd7 8. O-O Qc7 9. c4 e5 10. Qc2 Re8 11. a3 exd4 12. Nxd4 a6 13. h3 Rb8 {1-0 (76) Tregubov,A (2344)-Loskutov,O (2439) Moscow 2012}) 8. b5 {[%emt 0:00:09] The position is equal.} a4 {[%emt 0:04:44]} 9. Rb1 {[%emt 0:02:06]} Be6 {[%emt 0:09:13]} 10. bxc6 {[%emt 0:00:22]} bxc6 {[%emt 0:00:41]} 11. c4 {[%emt 0:00:18]} Qa5 {[%emt 0:01:29]} 12. O-O {[%emt 0:02:45]} Na6 {[%emt 0:04:05]} 13. e4 {[%emt 0:02:54]} Rfb8 {[%emt 0:03:13]} 14. a3 {[%emt 0:07:55]} Ra7 {[%emt 0:05:31]} (14... Nh5 $11) 15. Qc2 $14 {[%emt 0:00:38]} Rab7 {[%emt 0:04:58]} (15... Bg4 $14) 16. Bc3 $16 {[%emt 0:01:35]} Qc7 {[%emt 0:03:36]} 17. Rxb7 {[%emt 0:02:58]} Rxb7 {[%emt 0:00:10]} 18. Qxa4 {[%emt 0:01:51]} Bd7 {[%emt 0:02:40][%cal Oc6c5]} 19. c5 {[%emt 0:09:03]} ({Don't play} 19. Qxa6 $6 Ra7 20. Ba5 Qxa5 21. Qxa5 Rxa5 $11) 19... Nb8 {[%emt 0:00:42]} 20. Ba5 {[%emt 0:06:02]} Qc8 {[%emt 0:00:34]} 21. Bb4 {[%emt 0:00:10]} d5 {[%emt 0:00:51]} 22. e5 {[%emt 0:00:46]} Nh5 {[%emt 0:00:45]} 23. Re1 {[%emt 0:04:39]} Nf4 {[%emt 0:02:02]} 24. Bf1 {[%emt 0:00:50]} Bf5 {[%emt 0:00:29]} 25. Qb3 {[%emt 0:02:47]} Ne6 {[%emt 0:03:14]} 26. Qe3 {[%emt 0:01:30]} Ra7 {[%emt 0:03:10]} 27. Nh4 {[%emt 0:02:24]} Bc2 {[%emt 0:00:35]} 28. Rc1 {[%emt 0:00:25]} Ba4 {[%emt 0:00:11]} 29. f4 {[%emt 0:06:24]} Bh6 {[%emt 0:03:03]} 30. g3 {[%emt 0:00:42]} Na6 {[%emt 0:01:23]} 31. Ba5 {[%emt 0:11:22]} Ra8 {[%emt 0:02:59]} 32. Bb6 {[%emt 0:00:16]} Nac7 {[%emt 0:01:33]} 33. Bxc7 {[%emt 0:01:44]} Nxc7 {[%emt 0:00:16]} 34. Rb1 {[%emt 0:05:20]} Bb5 {[%emt 0:03:14]} 35. Rb4 {[%emt 0:01:08]} Bxf1 {[%emt 0:04:06]} 36. Nxf1 {[%emt 0:00:05]} Qa6 {[%emt 0:00:03] Prevents Qd3.} (36... Qg4 $1 $14) 37. a4 {[%emt 0:00:27]} Qa5 {[%emt 0:00:49]} 38. Qb3 {[%emt 0:00:31]} Ne6 {[%emt 0:01:33]} 39. Nf3 {[%emt 0:01:06]} Kg7 {[%emt 0:02:49]} 40. Ne3 {[%emt 0:02:27]} Qa6 {[%emt 0:02:49]} 41. Ng2 {[%emt 0:06:19]} (41. Qd1 $18) 41... Qe2 {[%emt 0:01:32]} 42. h4 {[%emt 0:00:41]} f6 $2 {[%emt 0:03:03]} (42... Kg8 $16 43. Rb6 Rxa4 44. Qxa4 Qxf3) 43. exf6+ {[%emt 0:00:45]} exf6 {[%emt 0:00:29]} 44. Qe3 {[%emt 0:03:07]} Qd1+ {[%emt 0:00:51]} 45. Qe1 {[%emt 0:02:25]} (45. Nge1 $18 Re8 46. Kf2) 45... Qxf3 $2 {[%emt 0:01:32][%mdl 8192]} (45... Qxe1+ $16 46. Ngxe1 Kf7) 46. Rb7+ $18 {[%emt 0:01:42]} Kh8 {[%emt 0:00:40]} 47. Qxe6 {[%emt 0:00:07]} Bg7 {[%emt 0:00:33]} 48. Qf7 {[%emt 0:02:36][%csl Gb7][%cal Rf7g7] [#] Active counter play!} Rg8 {[%emt 0:00:15]} 49. Re7 {[%emt 0:00:49] Re8 would kill now.} h6 {[%emt 0:01:37]} 50. Qxg6 {[%emt 0:00:54] And now Kh2 would win.} Qd1+ {[%emt 0:00:20]} 51. Kh2 {[%emt 0:00:21] Hoping for a5.} Qxa4 {[%emt 0:00:12]} (51... Qxd4 $142 52. Rf7 Qxc5 53. Rxf6 Qd4 54. Rxc6 (54. Rf7 Qg1+ 55. Kxg1 Bd4+ 56. Kh2 Rxg6 $16) 54... Qxa4) 52. Qd3 {[%emt 0:01:39]} Qc4 {[%emt 0:02:34]} 53. Qxc4 {[%emt 0:01:03]} dxc4 {[%emt 0:00:03][%mdl 4096] Endgame KRB-KRN} 54. Ne3 {[%emt 0:02:38]} c3 {[%emt 0:00:09]} 55. Nc2 {[%emt 0:00:06]} Ra8 {[%emt 0:01:16]} 56. Re3 {[%emt 0:00:13]} f5 {[%emt 0:00:57]} 57. Rxc3 {[%emt 0:00:02]} Ra4 {[%emt 0:00:14]} 58. Re3 {[%emt 0:01:00]} Rc4 $2 {[%emt 0:00:47]} (58... Kg8 {is tougher.} 59. Re2 h5) 59. Re2 {[%emt 0:00:01] Threatens to win with Re8+.} Kg8 $2 {[%emt 0:00:34]} (59... Bxd4 60. Nxd4 Rxd4) 60. Ne3 {[%emt 0:00:08][%csl LRc4,LRf5]} Rxd4 {[%emt 0:00:38]} 61. Nxf5 {[%emt 0:00:04]} Rc4 {[%emt 0:00:50]} 62. Re8+ {[%emt 0:01:33]} Bf8 {[%emt 0:00:19]} 63. Nxh6+ {[%emt 0:00:14]} Kg7 {[%emt 0:00:03]} 64. Nf5+ {[%emt 0:00:08]} Kf7 {[%emt 0:00:11]} 65. Rc8 {[%emt 0:01:50]} Rxc5 {[%emt 0:00:09]} 66. Nd4 {[%emt 0:00:48][%cal Oc8f8] Rxf8+! is the strong threat.} Rc4 {[%emt 0:01:05]} 67. Nxc6 {[%emt 0:00:21] White wants to mate with Ne5+.} Kg7 {[%emt 0:00:52]} 68. Rc7+ {[%emt 0:02:24]} Kf6 {[%emt 0:00:59] [#]} 69. Ne7 {[%emt 0:02:05]} (69. Rf7+ $142 $3 {[%mdl 512]} Kxf7 (69... Ke6 70. Nd8+) 70. Ne5+ Kf6 71. Nxc4) 69... Rxc7 {[%emt 0:00:51]} (69... Rd4 $18 70. Ng8+ Ke6) 70. Nd5+ {[%emt 0:00:01] White mates.} Kf5 {[%emt 0:00:07]} 71. Nxc7 {[%emt 0:00:05] KB-KN} Kg4 {[%emt 0:00:06]} 72. Nd5 {[%emt 0:02:22]} Bh6 {[%emt 0:01:32]} 73. Kg2 {[%emt 0:00:14]} Bf8 {[%emt 0:00:25]} 74. Ne3+ {[%emt 0:00:06]} Kh5 {[%emt 0:00:04]} 75. Kh3 {[%emt 0:00:06]} Bc5 {[%emt 0:00:04]} 76. g4+ {[%emt 0:00:11]} Kg6 {[%emt 0:00:05]} 77. h5+ {[%emt 0:00:12]} Kh7 {[%emt 0:00:13]} 78. Nf5 {[%emt 0:00:12] Weighted Error Value: White=0.22 (precise) /Black=0.33} 1-0

[Event "Chessable English Open-ch 2022"]
[Site "Kenilwoth"]
[Date "2022.05.19"]
[Round "1.10"]
[White "Larkin, Benjamin"]
[Black "Ashton, Adam G"]
[Result "0-1"]
[ECO "C58"]
[WhiteElo "1853"]
[BlackElo "2366"]
[Annotator "TA"]
[PlyCount "92"]
[EventDate "2022.05.18"]
[EventType "swiss"]
[EventCountry "ENG"]
[SourceTitle "playchess.com"]
[Source "ChessBase"]
[SourceQuality "1"]
[TimeControl "5400+30"]

{[%evp 14,92,34,33,32,29,21,33,40,22,52,39,40,49,47,18,62,60,80,82,86,82,106,91,109,84,92,73,104,10,13,0,14,0,0,0,60,41,48,0,0,0,0,0,17,25,34,0,0,0,0,0,0,0,0,0,0,0,0,0,0,0,0,0,0,0,0,0,0,0,0,0,0,0,0,-118,-118,-29996,-29983,-29996,-29997]} 1. e4 {[%emt 0:00:01]} e5 {[%emt 0:01:08]} 2. Nf3 {[%emt 0:00:06]} Nc6 {[%emt 0:00:04]} 3. Bc4 {[%emt 0:00:06]} Nf6 {[%emt 0:00:32]} 4. Ng5 {[%emt 0:00:01]} d5 {[%emt 0:00:53]} 5. exd5 {[%emt 0:00:05]} Na5 {[%emt 0:00:08]} 6. Bb5+ {[%emt 0:00:03]} c6 {[%emt 0:03:44]} 7. dxc6 {[%emt 0:00:25]} bxc6 {[%emt 0:00:06]} 8. Bd3 {[%emt 0:00:10] is more profitable than 8.Be2 at the moment.} Nd5 {[%emt 0:03:53] C58: Two Knights: 4 Ng5 d5 5 exd5 Na5 sidelines.} 9. Nf3 {[%emt 0:00:58]} ({Inferior is} 9. Qh5 g6 10. Nxf7 gxh5 $17) 9... Bd6 {[%emt 0:00:18]} 10. O-O {[%emt 0:00:05]} O-O {[%emt 0:01:47] White is slightly better.} 11. Re1 {[%emt 0:00:06]} Qc7 {[%emt 0:16:17]} 12. Bf1 {[%emt 0:03:50]} Bg4 {[%emt 0:03:53][%cal Oe5e4]} 13. h3 {[%emt 0:01:14]} Bh5 {[%emt 0:00:54]} 14. c4 {[%emt 0:04:11] [#]} Nf6 $146 {[%emt 0:05:07]} ({Predecessor:} 14... Nf4 15. d3 Ne6 16. Be2 Rad8 17. Nc3 Bxf3 18. Bxf3 f5 19. Bd2 e4 20. dxe4 Bf4 21. Bxf4 Nxf4 {1-0 (58) Bortnyk,O (2495)-Okara,A (2347) Loo 2014}) 15. Nc3 $36 {[%emt 0:03:13][%mdl 2048] Inhibits e4. White has good play.} Rfe8 {[%emt 0:08:46]} 16. g4 {[%emt 0:04:29]} Bg6 {[%emt 0:00:45]} 17. Nh4 {[%emt 0:00:50]} Bc5 {[%emt 0:11:30]} 18. d3 {[%emt 0:02:57]} Rad8 {[%emt 0:07:11][%cal Og6d3]} 19. Nxg6 {[%emt 0:01:13]} hxg6 {[%emt 0:02:13]} 20. Qf3 {[%emt 0:02:16] Inhibits e4.} Bd4 {[%emt 0:09:03]} 21. Ne4 {[%emt 0:10:04]} ({White should play} 21. Bd2 $16) 21... Nxe4 $11 {[%emt 0:00:19]} 22. Qxe4 {[%emt 0:07:17]} Nb7 {[%emt 0:01:17]} 23. Qe2 {[%emt 0:08:40]} Nc5 {[%emt 0:02:00] Strongly threatening ...e4.} 24. Be3 {[%emt 0:00:35]} e4 {[%emt 0:03:52]} ({Better is} 24... f6 $11) 25. dxe4 $14 {[%emt 0:01:26]} Rxe4 {[%emt 0:02:44]} 26. Rad1 {[%emt 0:05:44]} (26. Qf3 $1 $14 {is more appropriate.}) 26... Bxe3 $11 {[%emt 0:00:31]} 27. Rxd8+ {[%emt 0:01:13]} Qxd8 {[%emt 0:00:02]} 28. fxe3 {[%emt 0:00:48]} Qg5 {[%emt 0:02:24]} 29. Bg2 {[%emt 0:00:27] [#] Hoping for b4.} Re6 {[%emt 0:01:08]} 30. e4 {[%emt 0:04:00]} Qe5 {[%emt 0:01:10]} 31. b4 {[%emt 0:01:41]} Nd7 {[%emt 0:01:48]} 32. Rd1 {[%emt 0:01:00]} Rd6 {[%emt 0:01:56]} 33. c5 {[%emt 0:03:35]} Rd4 {[%emt 0:00:52]} 34. Kh1 {[%emt 0:05:25]} Nf8 {[%emt 0:01:37]} 35. Rxd4 {[%emt 0:04:14]} Qxd4 {[%emt 0:00:07][%mdl 4096] Endgame KQB-KQN} 36. Qe1 {[%emt 0:01:28]} Nd7 {[%emt 0:00:16]} 37. e5 {[%emt 0:00:44]} Nxe5 {[%emt 0:00:35]} 38. Bxc6 {[%emt 0:02:07]} Nxc6 {[%emt 0:02:01]} 39. Qe8+ {[%emt 0:00:02]} Kh7 {[%emt 0:00:02] And now ...Ne5 would win.} 40. Qxc6 {[%emt 0:00:07]} Qxb4 {[%emt 0:00:39] KQ-KQ} 41. Qd5 {[%emt 0:00:54]} Qe1+ {[%emt 0:01:44]} 42. Kg2 {[%emt 0:00:35]} Qe2+ {[%emt 0:00:15]} 43. Kg3 {[%emt 0:00:07]} Qe3+ {[%emt 0:00:12]} 44. Qf3 {[%emt 0:01:16]} (44. Kg2 $11) 44... Qg1+ $17 {[%emt 0:01:14]} 45. Kh4 $2 {[%emt 0:01:27][%mdl 8192] [#]} (45. Qg2 $17 Qxc5 46. Qf3) 45... Qe1+ {[%emt 0:00:14]} 46. Kg5 {[%emt 0:00:31]} f6+ {[%emt 0:00:20] Weighted Error Value: White=0.31/Black=0.09 (flawless)} 0-1

[Event "Chessable English Open-ch 2022"]
[Site "Kenilwoth"]
[Date "2022.05.19"]
[Round "1.11"]
[White "Hackner, Oskar A"]
[Black "Zheng, Harry Z"]
[Result "1-0"]
[ECO "E05"]
[WhiteElo "2177"]
[BlackElo "1915"]
[Annotator "TA"]
[PlyCount "51"]
[EventDate "2022.05.18"]
[EventType "swiss"]
[EventCountry "ENG"]
[SourceTitle "playchess.com"]
[Source "ChessBase"]
[SourceQuality "1"]
[TimeControl "5400+30"]

{[%evp 19,51,30,24,31,37,39,35,29,38,23,49,45,134,140,135,127,132,127,156,156,155,159,159,159,147,144,152,150,233,223,1166,1151,29972,29972]} 1. d4 {[%emt 0:00:05]} Nf6 {[%emt 0:00:14]} 2. c4 {[%emt 0:00:09]} e6 {[%emt 0:00:13]} 3. g3 {[%emt 0:00:10]} d5 {[%emt 0:00:16]} 4. Nf3 {[%emt 0:00:12]} Be7 {[%emt 0:00:16]} 5. Bg2 {[%emt 0:00:19]} O-O {[%emt 0:00:16]} 6. O-O {[%emt 0:00:21]} dxc4 {[%emt 0:00:35]} 7. Ne5 {[%emt 0:02:01]} Nc6 {[%emt 0:00:19]} 8. Bxc6 {[%emt 0:00:36]} bxc6 {[%emt 0:00:08]} 9. Nxc6 {[%emt 0:00:05]} Qe8 {[%emt 0:00:58]} 10. Nxe7+ {[%emt 0:00:15]} Qxe7 {[%emt 0:00:08]} 11. Qc2 {[%emt 0:01:17] E05: Open Catalan: 5 Nf3 Be7.} e5 {[%emt 0:04:26]} 12. dxe5 {[%emt 0:07:27]} Qxe5 {[%emt 0:00:34]} 13. Bf4 {[%emt 0:02:09] White is slightly better.} Qc5 {[%emt 0:25:56]} 14. Nd2 {[%emt 0:02:52][%cal Bb1d2,Bd2c4,Bc4e3][%mdl 32] [#]} (14. Be3 $5 {[%cal Re3c5]} Qc6 15. f3 $14) 14... Bh3 $146 {[%emt 0:06:07]} ({Predecessor:} 14... Ba6 15. Rac1 Nd5 16. Nxc4 Nxf4 17. gxf4 Rfe8 18. Rfe1 Qh5 19. f3 Re6 20. Ne5 Rae8 {½-½ (35) Horvath,C (2512)-Prohaszka,P (2617) Bol 2015}) 15. Rfe1 {[%emt 0:04:45]} g5 {[%emt 0:12:39]} (15... Ng4 $14 16. Ne4 Qb6) 16. Be3 $16 {[%emt 0:02:49]} Qd5 {[%emt 0:02:23][%csl Gh3][%cal Rd5g2]} 17. f3 {[%emt 0:06:07]} Ng4 {[%emt 0:05:21]} 18. Nxc4 {[%emt 0:17:36]} Rfe8 {[%emt 0:08:39]} 19. Rad1 {[%emt 0:04:14]} Nxe3 {[%emt 0:05:19]} 20. Nxe3 {[%emt 0:00:29]} Qe5 {[%emt 0:02:30]} 21. Rd3 {[%emt 0:11:36]} Rad8 {[%emt 0:07:16]} 22. Red1 {[%emt 0:01:36][%cal Be1d1,Bd1d3,Bd3d8][%mdl 32]} Rxd3 {[%emt 0:00:16]} 23. Rxd3 {[%emt 0:00:07]} Bc8 {[%emt 0:01:15]} (23... Bf5 $16 {might work better.} 24. Nxf5 Qxf5) 24. Qc3 {[%emt 0:02:33]} Ba6 $2 {[%emt 0:03:13] [#]} (24... Qxc3 25. Rxc3 Be6) 25. Rd8 $3 $18 {[%emt 0:00:55][%mdl 512] White threatens Qxe5 and mate.} Qb5 {[%emt 0:13:01] [#]} (25... f6 26. Qxe5) 26. Nf5 $1 {[%emt 0:01:03][%mdl 512] Black got outplayed after the opening.  Weighted Error Value: White=0.02 (flawless) /Black=0.70} 1-0